Cogmind - Beta 10.2 *** ADVENTURER MODE // 2021.10.30 @ 21:04:02 Player: Icarus Result: Destroyed by D-53 Grenadier with Mini Grenade Launcher Performance ------------- Evolutions (1) 500 Regions Visited (3) 600 Robots Destroyed (10) 50 Value Destroyed (322) 322 Prototype IDs (3) 60 Alien Tech Used (0) 0 Bonus (200) 200 TOTAL SCORE: 1732 Bonus ------- Pacifist 200 Cogmind --------- Core Integrity 0/400 Matter 92/300 Energy 100/100 System Corruption 0% Temperature Cool (0) Movement Core (100) Ox1 Location -9/Mines Parts ------- > --- POWER (2) -------- (None) > --- PROPULSION (2) --- (None) > --- UTILITY (3) ------ Disposable Heat Sink Small Storage Unit Power Shielding > --- WEAPON (2) ------- (None) > --- INVENTORY (6) ---- Light Armor Plating Peak State ------------ > --- POWER ------------ Ion Engine Ion Engine > --- PROPULSION ------- Light Treads Light Treads > --- UTILITY ---------- Small Storage Unit Terrain Scanner Power Shielding > --- WEAPON ----------- Light Assault Rifle Rocket Launcher > --- INVENTORY -------- Aluminum Leg Disposable Heat Sink Light Armor Plating Small Laser Small Laser Mining Laser [Rating: 10] Favorites ----------- Power Ion Engine Engine Ion Engine Propulsion Light Treads Treads Light Treads Leg Aluminum Leg Utility Small Storage Unit Device Terrain Scanner Storage Small Storage Unit Protection Power Shielding Weapon Light Assault Rifle Energy Gun Small Laser Ballistic Gun Light Assault Rifle Launcher Grenade Launcher Special Weapon Mining Laser Build | -11 -10 -9 -9 ------- Run | Scr Mat Mat Min Slots Evolved 2 | . . 2 . Power 1 | . . 1 . Propulsion . | . . . . Utility 1 | . . 1 . Weapon . | . . . . Parts Attached 18 | 6 1 5 6 Power 2 | 1 . 1 . Engine 2 | 1 . 1 . Core . | . . . . Reactor . | . . . . Propulsion 3 | 2 . . 1 Treads 2 | 2 . . . Leg 1 | . . . 1 Wheel . | . . . . Hover . | . . . . Flight . | . . . . Utility 4 | 1 . 2 1 Device 2 | . . 1 1 Storage 1 | 1 . . . Processor . | . . . . Hackware . | . . . . Protection 1 | . . 1 . Artifact . | . . . . Weapon 9 | 2 1 2 4 Energy Gun 3 | 1 . . 2 Energy Cannon . | . . . . Ballistic Gun 1 | 1 . . . Ballistic Cannon . | . . . . Launcher 2 | . . 1 1 Special Weapon 3 | . 1 1 1 Impact Weapon . | . . . . Slashing Weapon . | . . . . Piercing Weapon . | . . . . Special Melee Weapon . | . . . . Unidentified Prototypes . | . . . . Parts Lost 11 | . . . 11 Power 2 | . . . 2 Propulsion 3 | . . . 3 Utility 1 | . . . 1 Weapon 5 | . . . 5 Highest Loss Streak 11 | . . . 11 Average Slot Usage (%) 82 | . 85 85 71 Engine 15 | . 14 17 12 Treads 22 | . 28 22 12 Device 5 | . . 6 11 Storage 11 | . 14 11 11 Protection 5 | . . 6 11 Energy Gun 1 | . 4 . . Ballistic Gun 10 | . 14 11 4 Launcher 3 | . . 5 2 Special Weapon 6 | . 9 5 3 Naked Turns . | . . . . Heaviest Build 21 | 11 11 20 21 Greatest Support 40 | 40 40 40 40 Greatest Overweight (x) 2 | . . . 2 Average Overweight (x) . | . . . . Largest Inventory Capacity 6 | 6 6 6 6 Average Capacity 5 | 5 6 6 6 Most Carried 6 | 3 6 6 6 Average Carried 4 | 1 3 5 4 Final Capacity 6 | 6 6 6 6 Final Carried 6 | 2 6 6 1 Class Distribution -------------------- 100% | Mutant Dominant Class ---------------- Mutant | -10/Materials Mutant | -9/Materials Mutant | -9/Mines Resources | -11 -10 -9 -9 ----------- Run | Scr Mat Mat Min Matter Collected 340 | 219 . 121 . Remotely . | . . . . Salvage Created 260 | . . 197 63 Parts 10 | . . 10 . Haulers Intercepted . | . . . . Recyclers Shooed . | . . . . Parts Field Recycled . | . . . . Retrieved Matter . | . . . . Parts Self-Destructed . | . . . . Prevented . | . . . . Kills | -11 -10 -9 -9 ------- Run | Scr Mat Mat Min Combat Hostiles Destroyed 25 | . . 9 16 Guns 3 | . . 1 2 AOE 22 | . . 8 14 Classes Destroyed 5 | . . 3 2 Swarmer 3 | . . 3 . Grunt 4 | . . 4 . Sentry 2 | . . 2 . Demolisher 1 | . . . 1 Assembled 15 | . . . 15 Best Kill Streak 16 | . . 7 16 Combat Bots Only 16 | . . 7 16 Max Kills in Single Turn 3 | . . 3 3 Gunslinging . | . . . . Exploded 3 | . . 3 3 Melee . | . . . . Uniques/NPCs Destroyed . | . . . . Combat | -11 -10 -9 -9 -------- Run | Scr Mat Mat Min Damage Taken 1334 | . . 338 996 Core 407 | . . 39 368 Absorbed by Shields . | . . . . Core Remaining (%) 100 | 100 100 . . Volleys Fired 47 | . 13 19 15 Largest 2 | . 1 2 2 Hottest 100 | . 100 100 53 Shots Fired 59 | . 13 27 19 Gun 26 | . 3 15 8 Cannon . | . . . . Launcher 19 | . . 8 11 Special 14 | . 10 4 . Kinetic 22 | . 3 15 4 Thermal 18 | . 10 4 4 Explosive 19 | . . 8 11 Electromagnetic . | . . . . Robot Hit Streak 24 | . 1 24 5 Robot Miss Streak 2 | . 1 . 2 Penetration Max . | . . . . Secondary Targets . | . . . . Shots Hit Robots 38 | . 2 23 13 Core Hits 54 | . 1 22 31 Critical Hits . | . . . . Critical Kills . | . . . . Critical Parts Destroyed . | . . . . Melee Attacks . | . . . . Impact . | . . . . Slashing . | . . . . Piercing . | . . . . Sneak Attacks . | . . . . Combat Hostiles . | . . . . Follow-up Attacks . | . . . . Damage Inflicted 1664 | . 24 528 1112 Guns 195 | . 24 109 62 Cannons . | . . . . Explosions 1469 | . . 419 1050 Melee . | . . . . Ramming . | . . . . Kinetic 149 | . 24 109 16 Thermal 46 | . . . 46 Explosive 1469 | . . 419 1050 Electromagnetic . | . . . . Impact . | . . . . Slashing . | . . . . Piercing . | . . . . Highest Corruption . | . . . . Average Corruption . | . . . . Corruption Purged . | . . . . Overload Shots . | . . . . Overflow Damage 46 | . . . 46 Projectiles . | . . . . Explosions 46 | . . . 46 Melee . | . . . . Knockbacks . | . . . . Impact . | . . . . Kinetic . | . . . . Secondary . | . . . . Self-Inflicted Damage 70 | . . 16 54 Shots 4 | . . 2 2 Rammed . | . . . . Targets Rammed . | . . . . Kicked . | . . . . Crushed . | . . . . Highest Temperature 68 | . 40 68 32 Average Temperature 17 | . 12 23 15 Received Heat Transfer 218 | . . 198 20 Siege Activations . | . . . . Robots Corrupted . | . . . . Combat Hostiles . | . . . . Parts Fried . | . . . . Impact Corruptions . | . . . . Robots Melted . | . . . . Combat Hostiles . | . . . . Parts Melted . | . . . . Heat Transferred 100 | . . . 100 Parts Sabotaged . | . . . . Parts Stolen . | . . . . Parts Stripped . | . . . . Power Chain Reactions . | . . . . Missiles Intercepted . | . . . . Alert | -11 -10 -9 -9 ------- Run | Scr Mat Mat Min Peak Influence 266 | . 4 266 87 Initial 87 | . . 1 87 Average 75 | . 2 150 54 Maximum Alert Level 1 | . . 1 . Low Security (%) 74 | 100 100 40 100 Level 1 25 | . . 59 . Level 2 . | . . . . Level 3 . | . . . . Level 4 . | . . . . Level 5 . | . . . . High Security . | . . . . Max Security . | . . . . Squads Dispatched . | . . . . Investigation . | . . . . Extermination . | . . . . Reinforcement . | . . . . Assault . | . . . . Garrison . | . . . . Intercept . | . . . . Construction Impeded . | . . . . Haulers Reinforced . | . . . . Stealth | -11 -10 -9 -9 --------- Run | Scr Mat Mat Min Distress Signals 1 | . . 1 . Communications Jammed . | . . . . Distress Signals . | . . . . Times Spotted 33 | . 3 12 18 Peak Tracking Total 10 | . 2 7 10 Tactical Retreats . | . . . . Traps | -11 -10 -9 -9 ------- Run | Scr Mat Mat Min Traps Triggered . | . . . . Indirectly . | . . . . Trap Hack Attempts . | . . . . Triggered . | . . . . Disarmed . | . . . . Reprogrammed . | . . . . Reused . | . . . . Traps Extracted . | . . . . Installed . | . . . . Triggered . | . . . . Machines | -11 -10 -9 -9 ---------- Run | Scr Mat Mat Min Machines Disabled . | . . . . Max in Single Turn . | . . . . Machines Sabotaged . | . . . . Garrisons Compromised . | . . . . Overloaded Fab Kills . | . . . . Fab Network Shutdowns . | . . . . Hacking | -11 -10 -9 -9 --------- Run | Scr Mat Mat Min Machines Accessed 3 | . 3 . . Terminals 3 | . 3 . . Fabricators . | . . . . Repair Stations . | . . . . Recycling Units . | . . . . Scanalyzers . | . . . . Garrison Access . | . . . . Total Hacks 9 | . 9 . . Successful 7 | . 7 . . Failed 2 | . 2 . . Catastrophic . | . . . . Database Lockouts . | . . . . Manual . | . . . . Terminals 9 | . 9 . . Fabricators . | . . . . Repair Stations . | . . . . Recycling Units . | . . . . Scanalyzers . | . . . . Garrison Access . | . . . . Terminal Hacks 7 | . 7 . . Record 3 | . 3 . . Prototype ID Bank 2 | . 2 . . Dispatch Records 2 | . 2 . . Fabricator Hacks . | . . . . Repair Station Hacks . | . . . . Recycling Unit Hacks . | . . . . Scanalyzer . | . . . . Garrison Access Hacks . | . . . . Unauthorized Hacks . | . . . . Terminals . | . . . . Fabricators . | . . . . Repair Stations . | . . . . Recycling Units . | . . . . Scanalyzers . | . . . . Garrison Access . | . . . . Data Cores Recovered . | . . . . Used . | . . . . Hacking Detections 2 | . 2 . . Full Trace Events 1 | . 1 . . Feedback Events . | . . . . Feedback Blocked . | . . . . Robot Schematics Acquired . | . . . . Robots Built . | . . . . Matter . | . . . . Time . | . . . . Total Robot Build Rating . | . . . . Part Schematics Acquired . | . . . . Parts Built . | . . . . Matter . | . . . . Time . | . . . . Total Part Build Rating . | . . . . Parts Repaired . | . . . . Time . | . . . . Parts Recycled . | . . . . Recycled Matter . | . . . . Retrieved Matter . | . . . . Retrieved Components . | . . . . Parts Scanalyzed . | . . . . Part Schematics Acquired . | . . . . Parts Damaged . | . . . . Bothacking | -11 -10 -9 -9 ------------ Run | Scr Mat Mat Min Used RIF Installer . | . . . . Robots Hacked . | . . . . Non-combat . | . . . . Combat . | . . . . Robot Hacks Applied . | . . . . Relay Couplers Released . | . . . . Robots Rewired . | . . . . Allies Hacked . | . . . . Hacks Repelled . | . . . . Allies | -11 -10 -9 -9 -------- Run | Scr Mat Mat Min Total Allies . | . . . . Largest Group . | . . . . Highest-Rated Group . | . . . . Highest-Rated Ally . | . . . . Total Orders . | . . . . Ally Attacks . | . . . . Total Damage . | . . . . Kills . | . . . . Allies Corrupted . | . . . . Allies Melted . | . . . . Intel | -11 -10 -9 -9 ------- Run | Scr Mat Mat Min Robot Analysis Total . | . . . . Derelict Logs Recovered . | . . . . Drone Launches . | . . . . Drone Recoveries . | . . . . Exploration | -11 -10 -9 -9 ------------- Run | Scr Mat Mat Min Turns Passed 708 | 87 187 308 126 Spaces Moved 363 | 55 86 155 67 Core 48 | 13 . . 35 Treads 314 | 42 86 155 31 Legs 1 | . . . 1 Wheels . | . . . . Hover . | . . . . Flight . | . . . . Fastest Speed 50 | 50 160 160 100 Average Speed 150 | 134 160 160 128 Slowest Speed 160 | 160 160 160 160 Overloaded Moves . | . . . . Propulsion Burnouts . | . . . . Robots Hopped . | . . . . Cave-ins Triggered . | . . . . Exploration Rate (%) 15 | 4 20 18 20 Regions Visited 3 Branch Regions 1 Pre-discovered Areas . | . . . . Known Exits Taken . | . . . . Unknown Exits Taken 3 | 1 1 1 . Scrap Searched . | . . . . Spaces Dug 13 | . 9 4 . Terrain Destroyed 168 | . 9 54 105 Melee . | . . . . Projectile 13 | . 9 4 . AOE 155 | . . 50 105 Terrain Rammed . | . . . . Walls Destroyed . | . . . . Machines Disabled . | . . . . Actions | -11 -10 -9 -9 --------- Run | Scr Mat Mat Min Total 442 | 68 103 183 88 Wait . | . . . . Move 360 | 54 85 154 67 Hop . | . . . . Pick Up 16 | 8 4 4 . Fast Attach . | . . . . Attach 14 | 6 . 3 5 Detach . | . . . . Swap 4 | . 1 2 1 Drop 1 | . . 1 . Fire 47 | . 13 19 15 Melee . | . . . . Ram . | . . . . Kick . | . . . . Crush . | . . . . Escape Stasis . | . . . . Rewire . | . . . . Trap . | . . . . Miscellaneous . | . . . . Route ------- -11/Scrapyard -10/Materials -9/Materials -9/Mines History --------- Turn | Location | Event 4 | -11/Scrapyard | Discovered new exit (range 16) 88 | -11/Scrapyard | Entered Materials 232 | -10/Materials | Discovered new exit (range 9) 275 | -10/Materials | Entered another Materials area 275 | -9/Materials | Evolved 2 slots: Power x1, Utility x1 314 | -9/Materials | Build established: Mutant 420 | -9/Materials | Destroyed 7 combat bots 571 | -9/Materials | Discovered new exit (range 7) 583 | -9/Materials | Entered Mines 608 | -9/Mines | Assembled infested the area 668 | -9/Mines | Core integrity fell below 50% 682 | -9/Mines | Core integrity fell below 20% 688 | -9/Mines | Destroyed 16 combat bots 709 | -9/Mines | Destroyed by D-53 Grenadier with Mini Grenade Launcher Last Messages --------------- as-70958 destroyed. [Achievement: Exterminator] T-07 Excavator destroyed. Rocket Launcher destroyed. Destroyed Rocket Launcher. Sml. Laser destroyed. Terrain Scanner destroyed. Ion Engine destroyed. Lgt. Treads destroyed. The unstable cave ceiling collapses. D-53 Grenadier destroyed. The unstable cave ceiling collapses. Sml. Laser destroyed. The unstable cave ceiling collapses. Mining Laser destroyed. The unstable cave ceiling collapses. K-01 Serf collects debris. The unstable cave ceiling collapses. Aluminum Leg destroyed. The unstable cave ceiling collapses. Map ----- +----------------------------------------------------+ | | | | | | | | | | | | | | | | | | | | | | | ????????????????????????????????????? | | ????????????????????????????????????? | | ????????????????????????????????????? | | ????????????????????????????????????? | | ??????????######????????????????????? | | ???????#### ##??????#####????????? | | ??????## #?????# ##???????? | | ??????# ?????? ##??????? | | ??????? ????? ##?????? | | ???????# ?????? ??????? | | ??????## ???### % ##???#??? | | ??????# ????# #?? ##?? | | ???????? ???## ###? ##? | | ?????????? ###### # " #? | | ??????????##@## | | ??????????# # ### ## | | ??#??????## #?# #???? ?? | | ??# ????# # #?# ##??????? | | ??# ??## # #?# # #?????? ? | | ???# ?# # #?## #???????? | | ????# #d## #?# #???????? | | ?????# #?# # #????#??? | | ??????# ######### # #?# ???#? | | ???????###????????# # #???????? | | ????????????#?????# # #??? ???? | | ????????????????## # ##???????? | | ?????????????????## ##???????? | | ?????????????#?#?# ##????????? | | ???????????????##### ## ###???#?????? | | ?????????????# ##??##??##??? | | ???????????????######## #???????????? | | ??????????????????????#"#?????????#?? | | ?????????????????#????#%##??#???????? | | ?????????????????????##" ##?????#???? | | ???????????????????### ##??#?????# | | ???????????????????## ##???????? | | ???????????????????# #???#???? | | ???????????????????# # #???????? | | ???????????????????# ### ##???????? | +----------------------------------------------------+ Best States ------------- Heat Dissipation 28 Coolant Potential 50 Energy Generation 15 Energy Capacity 400 Matter Stores 282 Matter Capacity 300 Sight Range 16 Terrain Scan Range 14 Terrain Scan Density 10 Resistance: KI 20 Resistance: TH 20 Resistance: EX 20 Resistance: EM 20 Resistance: I 20 Resistance: S 20 Resistance: P 20 Power Shielding 33 Evasion (%) 50 Recoil Reduction 2 Offensive Hacking 10 Item Schematics ----------------- None Robot Schematics ------------------ None Fabricated ------------ Nothing Alien Tech Used ----------------- None Achievements -------------- Exterminator Challenges ------------ None Game ------ Seed WarpEnhancedShotgun Manual? 0 Play Time 00:16:15 Cumulative 12.2 hours Start 2021.08.09 @ 21:22:50 End 2021.10.30 @ 21:04:02 Sessions 3 Manual Loads 0 Difficulty Adventurer Special Mode None Game No. 15 Rogue 0 Adventurer 15 Explorer 0 Win Type - Total 0 Types 0/0/0/0/0/0/0/0/0 Lore% 9 Gallery% 16 Achievement% 14 Wizard Run 0 Options --------- ASCII 0 Keyboard 0 Movement Mouse Keybinds 0 Fullscreen 0 Font 16/SmallcapsGlow Map View 76x50 Tactical HUD 0 Map Filters NONE Filters NONE Steam 1 RUN: d2b49173-42ce-4949-b4e4-b271487f5477